fUSD/lending_fUSD_20251019
["ID","MTS","AMOUNT","RATE_DAILY","PERIOD"]
[391820283,1760879440377,-377.71853222,0.0004495,120]
[391820286,1760879440387,-16706.05,0.0004495,60]
[391820287,1760879440396,-475.82771539,0.00044956,120]
[391820289,1760879440405,-693.1191299,0.00044964,14]
[391820291,1760879440414,-1425.0,0.00044969,2]
[391820293,1760879440423,-1043.92542049,0.00044975,15]
[391820295,1760879440432,-758.28311361,0.00044975,15]
[391820297,1760879440441,-150.0,0.00044983,14]
[391820299,1760879440451,-1425.0,0.00044987,2]
[391820301,1760879440460,-1000.0,0.00044989,14]
[391820304,1760879440470,-150.0,0.0004499,120]
[391820305,1760879440479,-150.0,0.0004499,120]
[391820308,1760879440488,-300.0,0.0004499,120]
[391820309,1760879440498,-420.0,0.0004499,120]
[391820312,1760879440508,-711.11924549,0.00044993,2]
[391820313,1760879440518,-1425.0,0.00044994,2]
[391820316,1760879440527,-6885.21402306,0.00044996,3]
[391820318,1760879440538,-1712.76365538,0.00044999,2]
[391820319,1760879440547,-423.69891786,0.00044999,2]
[391820321,1760879440556,-150.0,0.00045001,2]
[391820323,1760879440565,-150.0,0.00045001,2]
[391820325,1760879440574,-1425.0,0.00045006,2]
[391820327,1760879440583,-1425.0,0.00045012,2]
[391820329,1760879440593,-1000.0,0.00045028,14]
[391820331,1760879440603,-6885.21402306,0.00045029,3]
[391820333,1760879440612,-9084.12512951,0.00045029,3]
[391820336,1760879440623,-500.0,0.00045029,3]
[391820558,1760879442636,-11071.51693969,0.00045029,3]
[391820561,1760879442645,-82622.5682767,0.0004503,3]
[391820563,1760879442655,-6885.21402306,0.0004503,3]
[391820566,1760879442664,-500.0,0.00045035,120]
[391820569,1760879442673,-500.42603176,0.00045035,120]
[391820571,1760879442682,-300.0,0.00045035,120]
[391820574,1760879442691,-300.0,0.00045035,120]
[391820577,1760879442701,-300.0,0.00045035,120]
[391820580,1760879442713,-300.0,0.00045035,120]
[391820582,1760879442722,-300.0,0.00045035,120]
[391820584,1760879442731,-300.0,0.00045035,120]
[391820586,1760879442740,-201.1968,0.00045035,120]
[391820588,1760879442749,-500.0,0.00045038,120]
[391820590,1760879442759,-500.0,0.00045038,120]
[391820592,1760879442768,-366.81042109,0.00045038,120]
[391820594,1760879442777,-500.0,0.00045038,30]
[391820596,1760879442786,-500.0,0.00045038,120]
[391820598,1760879442795,-500.0,0.00045038,120]
[391820599,1760879442806,-500.0,0.00045039,120]
[391820601,1760879442815,-500.0,0.00045039,120]
[391820603,1760879442825,-500.0,0.00045039,120]
[391820605,1760879442834,-500.0,0.00045039,120]
[391820607,1760879442844,-500.0,0.00045039,120]
[391820609,1760879442854,-500.0,0.00045039,120]
[391820612,1760879442865,-500.0,0.00045039,120]
[391820614,1760879442874,-500.0,0.00045039,120]
[391820616,1760879442883,-500.0,0.00045039,120]
[391820618,1760879442892,-500.0,0.00045039,120]
[391820620,1760879442901,-500.0,0.00045039,120]
[391820622,1760879442910,-500.0,0.00045039,120]
[391820624,1760879442919,-500.0,0.00045039,120]
[391820626,1760879442931,-500.0,0.00045039,120]
[391820628,1760879442940,-500.0,0.00045039,120]
[391820629,1760879442950,-500.0,0.00045039,30]
[391820632,1760879442961,-500.0,0.00045039,120]
[391820634,1760879442969,-500.0,0.00045039,120]
[391820636,1760879442978,-342.44372256,0.0004504,7]
[391820637,1760879442988,-151.29,0.0004504,2]
[391820640,1760879442997,-1425.0,0.0004504,2]
[391820642,1760879443006,-500.0,0.0004504,120]
[391820644,1760879443015,-500.0,0.0004504,120]
[391820645,1760879443024,-500.0,0.0004504,120]
[391820647,1760879443033,-544.0,0.0004504,120]
[391820649,1760879443042,-151.0,0.0004504,120]
[391820651,1760879443051,-266.555594,0.0004504,120]
[391820653,1760879443061,-614.91213,0.0004504,120]
[391820654,1760879443071,-614.91213,0.0004504,120]
[391820655,1760879443079,-614.91213,0.0004504,120]
[391820656,1760879443089,-614.91213,0.0004504,120]
[391820657,1760879443098,-151.0,0.0004504,120]
[391820659,1760879443107,-150.0,0.00045045,14]
[391820661,1760879443115,-342.44372256,0.00045045,7]
[391820663,1760879443125,-272.95593808,0.00045047,120]
[391820664,1760879443134,-422.97126218,0.00045048,30]
[391820665,1760879443143,-195.65280787,0.00045048,120]
[391820666,1760879443153,-500.0,0.00045048,120]
[391820667,1760879443162,-500.0,0.00045048,120]
[391820668,1760879443171,-151.0,0.00045048,120]
[391820669,1760879443180,-614.91213,0.00045048,120]
[391820670,1760879443190,-614.91213,0.00045048,120]
[391820671,1760879443199,-614.91213,0.00045048,120]
[391820672,1760879443209,-614.91213,0.00045048,120]
[391820673,1760879443219,-500.0,0.00045048,30]
[391820674,1760879443228,-500.0,0.00045048,30]
[391820675,1760879443238,-242.915094,0.00045048,120]
[391820676,1760879443247,-500.0,0.00045048,120]
[391820677,1760879443256,-500.0,0.00045048,120]
[391820678,1760879443265,-500.0,0.00045048,120]
[391820679,1760879443275,-500.0,0.00045048,120]
[391820680,1760879443284,-666.0,0.00045049,30]
[391820681,1760879443298,-1059.3,0.00045049,60]
[391820682,1760879443308,-500.0,0.00045049,120]
[391820683,1760879443318,-500.0,0.00045049,120]
[391820684,1760879443327,-500.0,0.00045049,120]
[391820685,1760879443338,-500.0,0.00045049,120]
[391820686,1760879443347,-500.0,0.00045049,120]
[391820687,1760879443357,-500.0,0.00045049,120]
[391820688,1760879443368,-500.0,0.00045049,120]
[391820689,1760879443377,-306.74332183,0.00045049,120]
[391820690,1760879443386,-500.0,0.00045049,120]
[391820691,1760879443397,-500.0,0.00045049,120]
[391820692,1760879443406,-500.0,0.00045049,120]
[391820693,1760879443415,-500.0,0.00045049,120]
[391820694,1760879443425,-500.0,0.00045049,120]
[391820695,1760879443434,-500.0,0.00045049,120]
[391820696,1760879443444,-500.0,0.00045049,120]
[391820697,1760879443453,-500.0,0.00045049,120]
[391820698,1760879443463,-500.0,0.00045049,120]
[391820699,1760879443472,-1006.93,0.00045049,30]
[391820700,1760879443482,-1006.93,0.00045049,30]
[391820701,1760879443493,-1006.93,0.00045049,30]
[391820702,1760879443504,-1006.93,0.00045049,30]
[391820703,1760879443515,-1006.93,0.00045049,30]
[391820704,1760879443524,-1006.93,0.00045049,30]
[391820705,1760879443534,-1006.93,0.00045049,30]
[391820706,1760879443543,-1006.93,0.00045049,30]
[391820707,1760879443552,-1006.93,0.00045049,30]
[391820708,1760879443561,-500.0,0.00045049,120]
[391820709,1760879443571,-500.0,0.00045049,120]
[391820710,1760879443580,-500.0,0.00045049,120]
[391820711,1760879443589,-555.06486082,0.00045049,120]
[391820712,1760879443599,-563.13645941,0.00045049,120]
[391820713,1760879443609,-500.0,0.00045049,120]
[391820714,1760879443618,-500.0,0.00045049,120]
[391820715,1760879443628,-500.0,0.00045049,120]
[391820716,1760879443638,-500.0,0.00045049,120]
[391820717,1760879443647,-256.43606962,0.00045049,120]
[391820718,1760879443656,-500.0,0.00045049,120]
[391820719,1760879443666,-500.0,0.00045049,120]
[391820720,1760879443675,-500.0,0.00045049,120]
[391820721,1760879443685,-500.0,0.00045049,120]
[391820722,1760879443694,-500.0,0.00045049,120]
[391820723,1760879443703,-500.0,0.00045049,120]
[391820724,1760879443712,-500.0,0.00045049,120]
[391820725,1760879443721,-505.59674682,0.00045049,120]
[391820726,1760879443730,-500.0,0.00045049,120]
[391820727,1760879443740,-538.84,0.00045049,120]
[391820728,1760879443749,-538.84,0.00045049,120]
[391820729,1760879443759,-538.84,0.00045049,120]
[391820730,1760879443768,-538.84,0.00045049,120]
[391820731,1760879443778,-538.84,0.00045049,120]
[391820732,1760879443787,-538.84,0.00045049,120]
[391820733,1760879443796,-538.84,0.00045049,120]
[391820734,1760879443805,-538.84,0.00045049,120]
[391820735,1760879443814,-538.84,0.00045049,120]
[391820736,1760879443823,-228.21979711,0.00045049,120]
[391820737,1760879443833,-500.0,0.00045049,120]
[391820738,1760879443842,-500.0,0.00045049,120]
[391820739,1760879443851,-500.0,0.00045049,120]
[391820740,1760879443860,-500.0,0.00045049,120]
[391820741,1760879443869,-500.0,0.00045049,120]
[391820742,1760879443879,-500.0,0.00045049,120]
[391820743,1760879443888,-253.89869006,0.00045049,120]
[391820744,1760879443897,-500.0,0.00045049,120]
[391820745,1760879443907,-995.28,0.00045049,120]
[391820746,1760879443919,-500.0,0.00045049,120]
[391820747,1760879443929,-995.28,0.00045049,120]
[391820748,1760879443940,-500.0,0.00045049,120]
[391820749,1760879443950,-509.21470666,0.00045049,120]
[391820750,1760879443960,-995.28,0.00045049,120]
[391820751,1760879443969,-995.28,0.00045049,120]
[391820752,1760879443978,-995.28,0.00045049,120]
[391820753,1760879443988,-995.28,0.00045049,120]
[391820754,1760879443996,-995.28,0.00045049,120]
[391820755,1760879444005,-995.28,0.00045049,120]
[391820756,1760879444016,-995.28,0.00045049,120]
[391820757,1760879444027,-500.0,0.00045049,30]
[391820758,1760879444037,-160.27447938,0.00045049,30]
[391820759,1760879444047,-267.46074303,0.00045049,31]
[391820760,1760879444056,-322.6107,0.00045049,120]
[391820761,1760879444066,-1000.0,0.00045049,120]
[391820762,1760879444076,-1000.0,0.00045049,120]
[391820763,1760879444085,-1000.0,0.00045049,120]
[391820764,1760879444094,-1000.0,0.00045049,120]
[391820765,1760879444104,-1000.0,0.00045049,120]
[391820766,1760879444113,-1000.0,0.00045049,120]
[391820767,1760879444122,-1000.0,0.00045049,120]
[391820768,1760879444131,-6888.0,0.00045049,120]
[391820769,1760879444140,-1000.0,0.00045049,120]
[391820770,1760879444150,-1000.0,0.00045049,120]
[391820771,1760879444159,-1000.0,0.00045049,120]
[391820772,1760879444169,-7142.856,0.00045049,120]
[391820773,1760879444178,-1000.0,0.00045049,120]
[391820774,1760879444187,-1000.0,0.00045049,120]
[391820775,1760879444196,-1000.0,0.00045049,120]
[391820776,1760879444380,-7407.141672,0.00045049,120]
[391820777,1760879444390,-1000.0,0.00045049,120]
[391820778,1760879444399,-1000.0,0.00045049,120]
[391820779,1760879444408,-1000.0,0.00045049,120]
[391820780,1760879444418,-7681.20591386,0.00045049,120]
[391820781,1760879444427,-1000.0,0.00045049,120]
[391820782,1760879444436,-1000.0,0.00045049,120]
[391820783,1760879444445,-1000.0,0.00045049,120]
[391820784,1760879444455,-4637.27933119,0.00045049,120]
[391820785,1760879444519,-3328.13120149,0.00045049,120]
[391820786,1760879444528,-1000.0,0.00045049,120]
[391820787,1760879444537,-1000.0,0.00045049,120]
[391820788,1760879444547,-288.70190001,0.00045049,120]
[391820819,1760880201509,-161.75833995,0.00041104,16]
[391820820,1760880201534,-126.71595649,0.00041701,2]
[391820822,1760880308179,10000.0,0.00015,2]
[391820823,1760880308203,20000.0,0.00015,2]
[391820824,1760880308231,26400.0,0.00015,2]
[391820825,1760880308260,34581.284487,0.00015,2]
[391820827,1760880426441,-390.24,0.000162,5]
[391820828,1760880429215,-179.50218907,0.000162,5]
[391820829,1760880440400,-56470.0,0.000162,5]
[391820830,1760880475008,50000.0,0.00015,2]
[391820831,1760880475034,696805.2424955,0.00015,2]
[391820846,1760880631796,-3.94781093,0.000162,5]
[391820847,1760880631807,-527.69098567,0.000162,2]
[391820848,1760880631819,-934.51327658,0.000162,2]
[391820849,1760880631829,-483.98996874,0.000164,2]
[391820850,1760880631838,-195.0,0.000166,2]
[391820851,1760880631847,-366.51218119,0.00017,3]
[391820852,1760880631858,-134.45610678,0.00017,3]
[391820853,1760880631867,-195.0,0.0001782,2]
[391820854,1760880631881,-2500.0,0.0001782,2]
[391820855,1760880631890,-678.10339744,0.0002,5]
[391820856,1760880631899,-220.28,0.00021936,2]
[391820857,1760880631908,-220.28,0.0002309,2]
[391820858,1760880631918,-220.28,0.00024245,2]
[391820859,1760880631927,-220.28,0.00025399,2]
[391820860,1760880631937,-220.28,0.00026554,2]
[391820861,1760880631946,-220.28,0.00027708,2]
[391820862,1760880631955,-109.10417311,0.00028863,2]
[391820863,1760880631967,-111.17582689,0.00028863,2]
[391820864,1760880631976,-220.28,0.00030018,2]
[391820865,1760880631985,-220.28,0.00031172,2]
[391820866,1760880631994,-126.7674267,0.00032177,2]
[391820867,1760880632006,-760.86143897,0.00032177,2]
[391820868,1760880632018,-3873.61765643,0.00032177,2]
[391820869,1760880632027,-220.28,0.00032327,2]
[391820870,1760880632039,-220.28,0.00033481,2]
[391820872,1760880632049,-220.28,0.00034636,2]
[391820873,1760880632058,-220.28,0.0003579,2]
[391820875,1760880632067,-9999.99,0.00036261,2]
[391820877,1760880632077,-4761.2465221,0.00036414,2]
[391820879,1760880632087,-220.28,0.00036945,2]
[391820881,1760880632097,-220.28,0.00038099,2]
[391820883,1760880632106,-166.66,0.00038518,30]
[391820885,1760880632115,-220.28,0.00039254,2]
[391820887,1760880632129,-166.66,0.00039329,30]
[391820889,1760880632139,-252.353299,0.00039452,120]
[391820891,1760880632149,-150.915128,0.00039452,120]
[391820894,1760880632159,-153.538013,0.00039452,120]
[391820897,1760880632168,-4749.85633439,0.0004,2]
[391820900,1760880632179,-21492.50006894,0.0004,2]
[391820903,1760880632188,-250.0,0.0004002,7]
[391820906,1760880632203,-166.66,0.00040139,30]
[391820909,1760880632213,-220.28,0.00040408,2]
[391820911,1760880632222,-494.72855277,0.00040544,120]
[391820913,1760880632231,-4761.2465221,0.00040651,2]
[391820914,1760880632242,-5000.0,0.00040734,120]
[391820915,1760880632251,-166.66,0.0004095,30]
[391820916,1760880632260,-220.28,0.00041563,2]
[391820917,1760880632270,-166.66,0.00041761,30]
[391820918,1760880632280,-166.66,0.00042572,30]
[391820919,1760880632290,-166.6735,0.00042694,2]
[391820920,1760880632300,-220.28,0.00042717,2]
[391820921,1760880632310,-494.72855277,0.00042976,120]
[391820922,1760880632319,-160.0,0.0004298,120]
[391820923,1760880632328,-22579.43447485,0.00043,120]
[391820924,1760880632338,-220.28,0.00043872,2]
[391820925,1760880632347,-150.0,0.00043878,2]
[391820926,1760880632356,-1000.0,0.00043878,120]
[391820927,1760880632366,-1500.0,0.00043901,16]
[391820928,1760880632379,-360.22,0.0004395,2]
[391820929,1760880632388,-794.1,0.00043963,2]
[391820930,1760880632397,-1199.37,0.00043978,30]
[391820931,1760880632407,-2713.66551674,0.00044,120]
[391820932,1760880632416,-1634.03,0.00044294,2]
[391820933,1760880632425,-942.73407209,0.00044448,2]
[391820934,1760880632435,-584.16929,0.000446,24]
[391820935,1760880632444,-150.0,0.00044781,14]
[391820936,1760880632454,-150.0,0.00044794,14]
[391820937,1760880632463,-1000.0,0.0004484,14]
[391820938,1760880632472,-418.9011993,0.00044871,2]
[391820939,1760880632481,-4761.2465221,0.00044888,2]
[391820940,1760880632490,-30000.0,0.00044904,120]
[391820941,1760880632499,-167.16502785,0.0004493,28]
[391820942,1760880632509,-208.78508417,0.0004493,15]
[391820943,1760880632518,-208.78508409,0.00044938,15]
[391820944,1760880632527,-1000.0,0.00044938,2]
[391820945,1760880632536,-2500.0,0.00044938,2]
[391820946,1760880632546,-38650.0572,0.0004494,2]
[391820947,1760880632556,-1549.443,0.0004494,72]
[391820948,1760880632567,-194.621,0.0004494,72]
[391820949,1760880632575,-1095.5497483,0.0004494,17]
[391820950,1760880632584,-1000.0,0.00044941,14]
[391820951,1760880632595,-1000.0,0.00044945,14]
[391820952,1760880632604,-208.78508409,0.00044946,15]
[391820953,1760880632614,-1425.0,0.00044947,2]
[391820954,1760880632626,-564.07291035,0.00044949,120]
[391820955,1760880632635,-527.52374065,0.00044949,120]
[391820956,1760880632644,-1000.0,0.00044949,120]
[391820957,1760880632653,-6857.8618,0.00044949,2]
[391820958,1760880632663,-5000.0,0.0004495,120]
[391820959,1760880632672,-251.81235482,0.0004495,120]
[391820960,1760880632681,-587.51219532,0.0004495,17]
[391820961,1760880632690,-12921.2273611,0.0004495,60]
[391820962,1760880632701,-19055.17953507,0.0004495,60]
[391820963,1760880632712,-4376.3,0.0004495,60]
[391820977,1760880637768,-157.266654,0.00039452,120]
[391820978,1760880637778,-1781.34071773,0.0004495,60]
[391820979,1760880637789,-10140.05585296,0.0004495,60]
[391820980,1760880637856,-500.0,0.0004495,60]
[391820981,1760880637915,-4176.20288896,0.0004495,60]
[391820987,1760880639935,-944.99429979,0.0004495,60]
[391821002,1760880640199,-1659.69934439,0.0004495,60]
[391821005,1760880640211,-208.78508409,0.00044953,15]
[391821007,1760880640220,-208.78508409,0.00044961,15]
[391821009,1760880640230,-623.03604012,0.00044966,15]
[391821010,1760880640241,-208.78508409,0.00044969,15]
[391821011,1760880640250,-623.03604012,0.00044973,15]
[391821012,1760880640260,-1000.0,0.00044974,14]
[391821013,1760880640269,-1141.84243692,0.00044975,2]
[391821014,1760880640280,-208.78508409,0.00044977,15]
[391821015,1760880640290,-623.03604012,0.0004498,15]
[391821016,1760880640299,-208.78508409,0.00044984,15]
[391821017,1760880640309,-623.03604012,0.00044986,15]
[391821019,1760880640318,-420.0,0.0004499,120]
[391821020,1760880640328,-208.78508409,0.00044992,15]
[391821021,1760880640337,-623.03604012,0.00044993,15]
[391821023,1760880640347,-160.0,0.00045,120]
[391821025,1760880640357,-160.0,0.00045,120]
[391821027,1760880640367,-220.9609929,0.00045,120]
[391821028,1760880640377,-1514.030049,0.00045,120]
[391821029,1760880640386,-10491.20802857,0.00045,120]
[391821046,1760880643042,-20492.12197143,0.00045,120]
[391821047,1760880643052,-623.03604012,0.00045,15]
[391821048,1760880643061,-3057.0,0.00045014,120]
[391821049,1760880643070,-323.43,0.00045014,120]
[391821050,1760880643080,-2440.0,0.00045014,120]
[391821051,1760880643089,-167.16502785,0.00045024,28]
[391821052,1760880643098,-500.0,0.00045029,120]
[391821053,1760880643107,-188.70418872,0.00045029,120]
[391821054,1760880643116,-183.76722497,0.00045029,31]
[391821055,1760880643125,-258.73029117,0.00045029,120]
[391821056,1760880643135,-3111.37706648,0.0004503,3]
[391821063,1760880645830,-282.46594524,0.00045,2]
[391821064,1760880645839,-208.78508409,0.00045,15]
[391821065,1760880645848,-9042.59559032,0.0004503,3]
[391821066,1760880646168,-319.21744373,0.0004503,3]
[391821103,1760880874665,189.43,0.00034121,120]
[391821104,1760881373032,-158.0,0.00031,120]
[391821105,1760881524845,209.32,0.00013699,2]
[391821121,1760881806625,-209.32,0.00020187,2]
[391821122,1760881806648,-178.79980845,0.00022206,2]
[391821123,1760881810746,-71.20019155,0.00022206,2]
[391821124,1760881810770,-122.89427784,0.00022206,2]
[391821125,1760881812851,-153.93,0.00022206,2]
[391821126,1760881815550,-153.93,0.00022206,2]
[391821131,1760881831920,-782.57033734,0.00022206,2]
[391821132,1760881831934,-4.02969668,0.00022206,2]
[391821133,1760881831943,-250.0,0.00023432,2]
[391821134,1760881831954,-209.32,0.00026676,2]
[391821136,1760881831963,-250.0,0.00028262,2]
[391821137,1760881831972,-68.48069201,0.00028398,2]
[391821138,1760881831991,-104.96561485,0.00028398,2]
[391821139,1760881832003,-8645.0,0.0003,2]
[391821140,1760881832013,-209.32,0.00033165,2]
[391821141,1760881832022,-158.0,0.000337,120]
[391821142,1760881832032,-194.05,0.000343,60]
[391821143,1760881832041,-158.0,0.000364,120]
[391821144,1760881832050,-191.37864445,0.00036969,2]
[391821145,1760881832060,-151.0,0.00037067,14]
[391821146,1760881832069,-1600.0,0.00037068,3]
[391821147,1760881832079,-400.0,0.00037068,2]
[391821148,1760881832088,-300.0,0.00037068,3]
[391821149,1760881832098,-919.0,0.00037069,3]
[391821150,1760881832108,-300.0,0.00037069,2]
[391821151,1760881832117,-500.0,0.00037069,15]
[391821152,1760881832127,-500.0,0.00037069,7]
[391821153,1760881832136,-500.0,0.00037069,15]
[391821154,1760881832146,-180.82812479,0.00037069,7]
[391821155,1760881832155,-500.0,0.00037069,15]
[391821156,1760881832165,-500.0,0.00037069,15]
[391821157,1760881832175,-500.0,0.00037069,15]
[391821158,1760881832184,-500.0,0.00037069,15]
[391821159,1760881832194,-492.05080286,0.00037069,15]
[391821160,1760881832208,-500.0,0.00037069,15]
[391821161,1760881832217,-500.0,0.00037069,15]
[391821163,1760881832227,-500.0,0.00037069,15]
[391821165,1760881832237,-500.0,0.00037069,15]
[391821167,1760881832247,-500.0,0.00037069,15]
[391821169,1760881832256,-499.99999999,0.00037069,15]
[391821171,1760881832266,-107029.37,0.0003707,2]
[391821173,1760881832275,-9999.99,0.0003707,2]
[391821175,1760881832285,-500.0,0.0003765,5]
[391821177,1760881832295,-500.0,0.0003765,5]
[391821178,1760881832305,-500.0,0.0003765,5]
[391821179,1760881832314,-500.0,0.0003765,5]
[391821180,1760881832324,-500.0,0.0003815,5]
[391821181,1760881832333,-501.59885983,0.0003815,5]
[391821182,1760881832343,-500.0,0.0003815,2]
[391821183,1760881832353,-500.0,0.0003815,5]
[391821184,1760881832363,-500.0,0.0003815,5]
[391821185,1760881832373,-397.58989848,0.00038198,5]
[391821186,1760881832382,-500.0,0.00038198,5]
[391821187,1760881832395,-500.0,0.00038698,5]
[391821189,1760881832405,-1000.0,0.00038698,2]
[391821190,1760881832415,-500.0,0.00038698,5]
[391821191,1760881832425,-196.9369,0.00038888,30]
[391821192,1760881832435,-200.0,0.00038993,2]
[391821193,1760881832444,-1341.61,0.00039066,120]
[391821194,1760881832454,-500.0,0.00039073,2]
[391821196,1760881832464,-500.0,0.00039073,5]
[391821198,1760881832475,-158.0,0.000391,120]
[391821200,1760881832484,-1239.554,0.000391,53]
[391821203,1760881832494,-500.81021082,0.0003922,5]
[391821205,1760881832504,-424.0,0.00039534,2]
[391821206,1760881832514,-500.0,0.00039621,2]
[391821207,1760881832524,-75.75537361,0.00039654,2]
[391821208,1760881832536,-133.56462639,0.00039654,2]
[391821209,1760881832545,-445.0,0.0003966,5]
[391821210,1760881832555,-751.0,0.00039812,5]
[391821211,1760881832564,-250.0,0.00040478,2]
[391821212,1760881832575,-666.0,0.00041178,20]
[391821213,1760881832588,-158.0,0.000418,120]
[391821214,1760881832599,-665.59370152,0.0004196,2]
[391821215,1760881832611,-805.79629848,0.0004196,2]
[391821216,1760881832621,-3316.96643907,0.00042701,2]
[391821217,1760881832634,-1193.27857032,0.00042701,2]
[391821218,1760881832654,-16388.60499061,0.00042701,2]
[391821219,1760881832665,-1701.86366693,0.000429,15]
[391821220,1760881832676,-1000.0,0.00043,15]
[391821221,1760881832686,-172.55,0.00043057,2]
[391821222,1760881832696,-1701.86366693,0.00043133,15]
[391821223,1760881832707,-196.22,0.00043256,2]
[391821224,1760881832717,-1701.86366693,0.00043366,15]
[391821225,1760881832726,-610.0,0.00043572,120]
[391821226,1760881832736,-1701.86366693,0.000436,15]
[391821227,1760881832747,-1000.0,0.00043643,2]
[391821228,1760881832756,-1701.86366693,0.00043833,15]
[391821229,1760881832766,-507.96659414,0.00043944,15]
[391821230,1760881832775,-169.31001241,0.00043944,28]
[391821231,1760881832788,-1341.61,0.0004395,120]
[391821232,1760881832799,-500.0,0.00043999,120]
[391821233,1760881832809,-500.0,0.00043999,30]
[391821234,1760881832820,-621.21632312,0.00043999,120]
[391821235,1760881832830,-559.91578547,0.00043999,120]
[391821236,1760881832840,-500.0,0.00043999,120]
[391821237,1760881832850,-500.0,0.00043999,30]
[391821238,1760881832861,-31154.70224944,0.00044,60]
[391821239,1760881832870,-200.0,0.00044033,2]
[391821240,1760881832881,-24487.7580378,0.00044034,3]
[391821241,1760881832891,-500.0,0.00044042,120]
[391821242,1760881832902,-384.24155547,0.00044042,120]
[391821243,1760881832911,-500.0,0.00044042,120]
[391821244,1760881832921,-348.04917772,0.00044042,120]
[391821245,1760881832932,-581.9149375,0.00044042,120]
[391821246,1760881832945,-500.0,0.00044042,120]
[391821247,1760881832955,-500.0,0.00044042,30]
[391821248,1760881832964,-500.0,0.00044042,120]
[391821249,1760881832974,-500.0,0.00044042,120]
[391821250,1760881832986,-263.51937451,0.00044043,120]
[391821251,1760881832999,-222.99962812,0.00044043,120]
[391821252,1760881833009,-272.48434178,0.00044043,31]
[391821253,1760881833019,-500.0,0.00044043,120]
[391821254,1760881833028,-582.95178992,0.00044043,120]
[391821255,1760881833037,-500.0,0.00044043,120]
[391821256,1760881833046,-587.38,0.00044043,30]
[391821257,1760881833056,-500.0,0.00044043,120]
[391821258,1760881833065,-500.0,0.00044043,2]
[391821259,1760881833074,-500.0,0.00044043,120]
[391821260,1760881833083,-500.0,0.00044043,120]
[391821261,1760881833092,-500.0,0.00044043,5]
[391821262,1760881833102,-500.0,0.00044043,120]
[391821263,1760881833111,-580.58,0.00044043,120]
[391821264,1760881833120,-500.40926455,0.00044043,120]
[391821265,1760881833130,-20631.88072562,0.00044044,31]
[391821266,1760881833141,-83156.13464508,0.00044044,31]
[391821272,1760881837915,-1841.16199129,0.00044044,31]
[391821279,1760881840074,-758.54774623,0.00044044,31]
[391821307,1760881843206,-228107.68894864,0.00044044,31]
[391821308,1760881843219,-93740.53,0.00044044,7]
[391821309,1760881843229,-211.16755116,0.00044044,30]
[391821310,1760881843239,-507.96659405,0.0004406,15]
[391821311,1760881843248,-1701.86366693,0.00044066,15]
[391821312,1760881843259,-500.0,0.00044073,10]
[391821313,1760881843268,-500.0,0.00044073,10]
[391821314,1760881843278,-200.0,0.00044073,10]
[391821315,1760881843288,-500.0,0.00044113,10]
[391821316,1760881843297,-501.36690122,0.00044113,10]
[391821317,1760881843307,-156.58256373,0.00044129,15]
[391821318,1760881843316,-6121.93950945,0.00044157,3]
[391821319,1760881843326,-695.55,0.00044164,30]
[391821320,1760881843336,-695.55,0.00044164,30]
[391821321,1760881843346,-695.55,0.00044164,30]
[391821322,1760881843355,-695.55,0.00044164,30]
[391821323,1760881843365,-695.55,0.00044164,30]
[391821324,1760881843375,-459.81,0.00044164,30]